Cogmind - Beta 15 @@@ ROGUE MODE // 2025.09.20 @ 18:06:26 Player: bluemonk Result: Self-destructed Performance ------------- Evolutions (1) 500 Regions Visited (2) 400 Robots Destroyed (24) 120 Value Destroyed (648) 648 Prototype IDs (2) 40 Alien Tech Used (0) 0 Bonus (0) 0 TOTAL SCORE: 1708 Bonus ------- None Cogmind --------- Core Integrity 287/400 Matter 300/300 Energy 265/265 System Corruption 0% Temperature Cool (0) Movement Treading (160) Location -9/Materials Parts ------- > --- POWER (1) -------- Improved Ion Engine > --- PROPULSION (4) --- Light Treads > --- UTILITY (2) ------ Small Storage Unit Seismic Detector > --- WEAPON (2) ------- (None) > --- INVENTORY (8) ---- Ion Engine Light Ion Engine Light Treads Compact Wheel Compact Wheel Heat Sink Peak State ------------ > --- POWER ------------ Improved Ion Engine > --- PROPULSION ------- Light Treads Flight Unit Flight Unit Flight Unit > --- UTILITY ---------- Small Storage Unit Seismic Detector > --- WEAPON ----------- Heavy EM Pulse Gun Medium Laser > --- INVENTORY -------- Ion Engine Light Ion Engine Light Treads Compact Wheel Compact Wheel Heat Sink EM Pulse Gun [Rating: 11] Favorites ----------- Power Light Ion Engine Engine Light Ion Engine Propulsion Aluminum Leg Treads Light Treads Leg Aluminum Leg Flight Unit Flight Unit Utility Small Storage Unit Device Sensor Array Storage Small Storage Unit Weapon Small Laser Energy Gun Small Laser Build | -11 -10 -9 ------- Run | Yrd Mat Mat Slots Evolved 2 | . . 2 Power . | . . . Propulsion 2 | . . 2 Utility . | . . . Weapon . | . . . Parts Attached 18 | 6 3 9 Power 3 | 1 1 1 Engine 3 | 1 1 1 Core . | . . . Reactor . | . . . Propulsion 7 | 2 . 5 Treads 2 | . . 2 Leg 2 | 2 . . Wheel . | . . . Hover . | . . . Flight 3 | . . 3 Utility 4 | 1 2 1 Device 3 | . 2 1 Storage 1 | 1 . . Processor . | . . . Hackware . | . . . Protection . | . . . Artifact . | . . . Weapon 4 | 2 . 2 Energy Gun 4 | 2 . 2 Energy Cannon . | . . . Ballistic Gun . | . . . Ballistic Cannon . | . . . Launcher . | . . . Special Weapon . | . . . Impact Weapon . | . . . Slashing Weapon . | . . . Piercing Weapon . | . . . Special Melee Weapon . | . . . Unidentified Prototypes . | . . . Parts Lost 10 | . 1 9 Power 1 | . 1 . Propulsion 4 | . . 4 Utility 1 | . . 1 Weapon 4 | . . 4 Highest Loss Streak 5 | . 1 5 To Critical Strikes . | . . . Average Backups 6 | 2 6 6 Power 1 | . 1 1 Propulsion 3 | 1 4 2 Utility . | . . 1 Weapon 1 | . 1 1 Tool/Special . | . . . Unused Backups 3 | . . 3 Power 1 | . . 1 Propulsion 2 | . . 2 Utility . | . . . Weapon . | . . . Tool/Special . | . . . Average Slot Usage (%) 95 | . 95 94 Engine 12 | . 14 11 Treads 6 | . . 13 Leg 18 | . 28 5 Flight 8 | . . 20 Device 10 | . 10 10 Storage 12 | . 14 11 Energy Gun 24 | . 28 20 Peak Build Rating 11 | 6 7 11 Average Rating 7 | 4 6 9 On Entrance 4 | . 6 7 Naked Turns . | . . . Heaviest Build 18 | 11 12 18 Greatest Support 20 | 20 20 20 Greatest Overweight (x) 3 | . . 3 Average Overweight (x) . | . . . Largest Inventory Capacity 8 | 8 8 8 Average Capacity 7 | 6 8 8 Most Carried 8 | 6 8 8 Average Carried 6 | 3 6 6 Final Capacity 8 | 8 8 8 Final Carried 7 | 6 7 6 Class Distribution -------------------- 94% | Mutant 5% | Scavenger-Mutant Dominant Class ---------------- Mutant | -10/Materials Mutant | -9/Materials Resources | -11 -10 -9 ----------- Run | Yrd Mat Mat Matter Collected 375 | 200 80 95 Remotely . | . . . Salvage Created 844 | . 447 397 Parts 63 | . 29 34 Haulers Intercepted . | . . . Recyclers Shooed 1 | . . 1 Parts Field Recycled . | . . . Retrieved Matter . | . . . Parts Self-Destructed . | . . . Prevented . | . . . Kills | -11 -10 -9 ------- Run | Yrd Mat Mat Combat Hostiles Destroyed 18 | . 11 7 Guns 15 | . 8 7 AOE 3 | . 3 . Classes Destroyed 7 | . 4 3 Builder 2 | . 2 . Recycler 1 | . . 1 Mechanic 1 | . . 1 Watcher 2 | . 1 1 Swarmer 6 | . 3 3 Grunt 9 | . 8 1 Sentry 3 | . . 3 Best Kill Streak 4 | . 4 4 Combat Bots Only 4 | . 4 3 Max Kills in Single Turn 2 | . 1 2 Gunslinging 1 | . . 1 Exploded 1 | . 1 . Melee . | . . . Uniques/NPCs Destroyed . | . . . Combat | -11 -10 -9 -------- Run | Yrd Mat Mat Hostile Shots Fired 117 | . 65 52 Missed 36 | . 22 14 Hits 81 | . 43 38 Projectile 81 | . 43 38 Critical Strikes 1 | . . 1 Damage Taken 1083 | . 472 611 Core 210 | . 97 113 Absorbed by Shields . | . . . Core Remaining (%) 80 | 100 61 . Volleys Fired 77 | . 48 29 Largest 2 | . 2 2 Hottest 95 | . 80 95 Shots Fired 136 | . 83 53 Gun 136 | . 83 53 Cannon . | . . . Launcher . | . . . Special . | . . . Kinetic . | . . . Thermal 50 | . 35 15 Explosive . | . . . Electromagnetic 86 | . 48 38 Robot Hit Streak 12 | . 7 12 Robot Miss Streak 6 | . 6 6 Penetration Max . | . . . Secondary Targets 1 | . . 1 Max Gunslinging Chain 1 | . . 1 Shots Hit Robots 74 | . 45 29 Core Hits 38 | . 25 13 Critical Kills . | . . . Critical Parts Destroyed . | . . . Critical Strikes 1 | . . 1 Corrupt 1 | . . 1 Melee Attacks . | . . . Impact . | . . . Slashing . | . . . Piercing . | . . . Sneak Attacks . | . . . Combat Hostiles . | . . . Follow-up Attacks . | . . . Damage Inflicted 1441 | . 841 600 Guns 995 | . 566 429 Cannons . | . . . Explosions 446 | . 275 171 Melee . | . . . Ramming . | . . . Kinetic . | . . . Thermal 797 | . 515 282 Explosive . | . . . Electromagnetic 644 | . 326 318 Impact . | . . . Slashing . | . . . Piercing . | . . . Highest Corruption . | . . . Average Corruption . | . . . Corruption Purged . | . . . Corruption Blocked . | . . . Overload Shots . | . . . Overflow Damage 76 | . 21 55 Projectiles . | . . . Explosions 76 | . 21 55 Melee . | . . . Knockbacks . | . . . Impact . | . . . Kinetic . | . . . Secondary . | . . . Self-Inflicted Damage 154 | . 20 134 Shots 3 | . 1 2 Rammed . | . . . Targets Rammed . | . . . Kicked . | . . . Crushed . | . . . Highest Temperature 192 | . 192 150 Average Temperature 51 | . 59 41 Received Heat Transfer 339 | . 174 165 Siege Activations . | . . . Martial Activations . | . . . Shielding Activations . | . . . Robots Disrupted . | . . . Combat Hostiles . | . . . Robots Corrupted . | . . . Combat Hostiles . | . . . Parts Fried . | . . . Impact Corruptions . | . . . Robots Melted . | . . . Combat Hostiles . | . . . Parts Melted . | . . . Heat Transferred 1397 | . 900 497 Parts Sabotaged . | . . . Parts Stolen . | . . . Parts Stripped . | . . . Power Chain Reactions 7 | . 4 3 Alert | -11 -10 -9 ------- Run | Yrd Mat Mat Maximum Alert Level 1 | . 1 . Low Security (%) 98 | 100 96 100 Level 1 1 | . 3 . Level 2 . | . . . Level 3 . | . . . Level 4 . | . . . Level 5 . | . . . High Security . | . . . Max Security . | . . . Peak Influence 200 | . 200 86 Initial 24 | . . 24 Average 47 | . 57 42 Influence Increases 704 | . 428 276 Destroy 0b10 Robot/C 360 | . 220 140 Destroy 0b10 Robot/NC 30 | . 15 15 Destroy Leader 94 | . 52 42 Successful Hack 23 | . 23 . Disable Machine 90 | . 45 45 Destroy Structure 47 | . 13 34 Lose Combat Pursuer 60 | . 60 . Influence Decreases 658 | . 371 287 Entered New Map 33 | . . 33 Time Decay 385 | . 211 174 Lost Part 90 | . 10 80 Purge Threat 150 | . 150 . Squads Dispatched 3 | . 3 . Investigation 1 | . 1 . Extermination . | . . . Reinforcement 2 | . 2 . Assault . | . . . Garrison . | . . . Intercept . | . . . Searches Triggered . | . . . Construction Impeded . | . . . Haulers Reinforced . | . . . Active Scanning Responses . | . . . Cargo Convoy Interrupts . | . . . Stealth | -11 -10 -9 --------- Run | Yrd Mat Mat Distress Signals 3 | . 2 1 Communications Jammed . | . . . Distress Signals . | . . . Times Spotted 32 | . 21 11 Peak Tracking Total 5 | . 5 3 Tactical Retreats 4 | . 4 . Traps | -11 -10 -9 ------- Run | Yrd Mat Mat Traps Triggered 1 | . 1 . Indirectly . | . . . Trap Hack Attempts . | . . . Triggered . | . . . Disarmed . | . . . Reprogrammed . | . . . Reused . | . . . Traps Extracted . | . . . Installed . | . . . Triggered . | . . . Machines | -11 -10 -9 ---------- Run | Yrd Mat Mat Machines Disabled 6 | . 3 3 Max in Single Turn 2 | . 2 2 Machines Repaired . | . . . Machines Dismantled . | . . . Machines Sabotaged . | . . . Overloaded Fab Kills . | . . . Hacking | -11 -10 -9 --------- Run | Yrd Mat Mat Machines Accessed 5 | . 5 . Terminals 5 | . 5 . Fabricators . | . . . Repair Stations . | . . . Recycling Units . | . . . Scanalyzers . | . . . Garrison Access . | . . . Total Hacks 12 | . 12 . Successful 4 | . 4 . Failed 8 | . 8 . Catastrophic 2 | . 2 . Database Lockouts . | . . . Manual . | . . . Terminals 12 | . 12 . Fabricators . | . . . Repair Stations . | . . . Recycling Units . | . . . Scanalyzers . | . . . Garrison Access . | . . . Terminal Hacks 4 | . 4 . Prototype ID Bank 1 | . 1 . Unreport Threat 1 | . 1 . Locate Traps 2 | . 2 . Fabricator Hacks . | . . . Repair Station Hacks . | . . . Recycling Unit Hacks . | . . . Scanalyzer . | . . . Garrison Access Hacks . | . . . Unauthorized Hacks . | . . . Terminals . | . . . Fabricators . | . . . Repair Stations . | . . . Recycling Units . | . . . Scanalyzers . | . . . Garrison Access . | . . . Data Cores Recovered . | . . . Used . | . . . Hacking Detections 5 | . 5 . Full Trace Events . | . . . Feedback Events . | . . . Feedback Blocked . | . . . Robot Schematics Acquired . | . . . Robots Built . | . . . Authchips . | . . . Time . | . . . Total Robot Build Rating . | . . . Part Schematics Acquired . | . . . Parts Built . | . . . Authchips . | . . . Time . | . . . Total Part Build Rating . | . . . Parts Repaired . | . . . Time . | . . . Parts Recycled . | . . . Recycled Matter . | . . . Retrieved Matter . | . . . Retrieved Components . | . . . Parts Scanalyzed . | . . . Part Schematics Acquired . | . . . Parts Damaged . | . . . Bothacking | -11 -10 -9 ------------ Run | Yrd Mat Mat Used RIF Installer . | . . . Robots Hacked . | . . . Non-combat . | . . . Combat . | . . . Robot Hacks Applied . | . . . Relay Couplers Released . | . . . Fabnet Peak Effective % . | . . . Robots Rewired . | . . . Allies Hacked . | . . . Hacks Repelled . | . . . Allies | -11 -10 -9 -------- Run | Yrd Mat Mat Total Allies . | . . . Largest Group . | . . . Highest-Rated Group . | . . . Highest-Rated Ally . | . . . Total Orders . | . . . Ally Attacks . | . . . Total Damage . | . . . Kills . | . . . Allies Corrupted . | . . . Allies Melted . | . . . Intel | -11 -10 -9 ------- Run | Yrd Mat Mat Active Infowar (turns) 769 | . 378 391 Sensors 638 | . 378 260 Seismic 131 | . . 131 Robot Analysis Total . | . . . Derelict Logs Recovered . | . . . Drone Launches . | . . . Drone Recoveries . | . . . Exploration | -11 -10 -9 ------------- Run | Yrd Mat Mat Turns Passed 1011 | 80 532 399 Spaces Moved 559 | 58 311 190 Core 5 | 5 . . Treads 101 | . . 101 Legs 419 | 53 311 55 Wheels . | . . . Hover . | . . . Flight 34 | . . 34 Fastest Speed 50 | 50 120 120 Average Speed 128 | 113 120 145 Slowest Speed 320 | 120 120 320 Overloaded Moves . | . . . Propulsion Burnouts . | . . . Robots Hopped . | . . . Potential Cave-ins . | . . . Cave-ins Triggered . | . . . Exploration Rate (%) 26 | 6 50 22 Regions Visited 2 Branch Regions . Pre-discovered Areas . | . . . Known Exits Taken . | . . . Unknown Exits Taken 2 | 1 1 . Scrap Searched . | . . . Spaces Dug . | . . . Terrain Destroyed 48 | . 12 36 Melee . | . . . Projectile . | . . . AOE 48 | . 12 36 Terrain Rammed . | . . . Walls Destroyed . | . . . Machines Disabled . | . . . Actions | -11 -10 -9 --------- Run | Yrd Mat Mat Total 713 | 69 386 258 Wait 47 | . 23 24 Move 557 | 57 310 190 Hop . | . . . Pick Up 9 | 6 2 1 Fast Attach 10 | 6 1 3 Attach 7 | . 1 6 Detach 2 | . . 2 Swap 3 | . 1 2 Drop 1 | . . 1 Fire 77 | . 48 29 Melee . | . . . Ram . | . . . Kick . | . . . Crush . | . . . Escape Stasis . | . . . Rewire . | . . . Trap . | . . . Miscellaneous . | . . . Route ------- -11/Scrapyard -10/Materials -9/Materials (discovered 1 exit: [*Min]) History --------- Turn | Location | Event 13 | -11/Scrapyard | Discovered new exit (range 16) 81 | -11/Scrapyard | Entered Materials 313 | -10/Materials | Build established: Mutant 487 | -10/Materials | Discovered new exit (range 10) 613 | -10/Materials | Entered another Materials area 613 | -9/Materials | Evolved 2 slots: Propulsion x2 985 | -9/Materials | Discovered new exit (range 16) 1012 | -9/Materials | Self-destructed Last Messages --------------- Y-45 Defender destroyed. Chain reaction triggered in Lgt. Ion Engine. Destroyed Wheel. M-13 Machinist destroyed. Destroyed Tractor Beam. R-06 Scavenger destroyed. EM Pulse Gun destroyed. R-06 Scavenger collects Corrupted Visual Processing Unit. EXIT=FOUND R-06 Scavenger collects Wheel. R-06 Scavenger collects Hover Unit. R-06 Scavenger collects Corrupted Beam Rifle. R-06 Scavenger collects Corrupted Sml. Storage Unit. Flight Unit destroyed. R-06 Scavenger collects Lgt. Treads. Critical hit (Burn: +37). Hvy. EM Pulse Gun destroyed. R-06 Scavenger collects Corrupted Lgt. Treads. Map ----- +----------------------------------------------------+ | | | | | | | | | | | | | | | ???????????????????????????????? | | ???????????????????????????????? | | ???????????????????????????????? | | ???????????????????????????????? | | ???????????????????????????????? | | ???????????????????????????????? | | ???????????????????????????????? | | ???????????????????????????????? | | ???????????????????????????????? | | ??????#####????????????????????? | | ?????##"""##???????????????????? | | ????##"!!!"##??????????????????? | | ????#"" ""#??????????????????? | | ????# #??????????????????? | | ????# < #??????????????????? | | ????# #??????????????????? | | ????# #??????????????????? | | ?????# #???????????????????? | | ??????#@ #????????????????????? | | ??????# #????####????????????? | | ??????# #??#!!!!##???????????? | | ??????# #??! !#???????????? | | ?????## ##? #???????????? | | ?????# ## ###?????????? | | ?????# ] ###???????? | | ?????# ????????? | | ?????# " "" ##????????? | | ?????# """"" ##????????? | | ?????## g" "#????????? | | ####??# #?????????? | | # ?# % % #?????????? | | # ?# % "#????????? | | # # = " #???? | | # # "T" == #???? | | # + !%[ ????? | | # """ # *[! ????? | | # """ # ##### ?????? | | # """ # ####+###?????? ?????? | | ##""""# #????????????????????? | | " " #????????????????????? | | " " #????????????????????? | | = #????????????????????? | | #????????????????????? | +----------------------------------------------------+ Best States ------------- Heat Dissipation 35 Energy Generation 12 Energy Capacity 265 Matter Stores 300 Matter Capacity 300 Sight Range 16 Robot Scan Range 14 Terrain Scan Density 10 Evasion (%) 55 Recoil Reduction 1 Item Schematics ----------------- None Robot Schematics ------------------ None Fabricated ------------ Nothing Repaired ---------- Nothing Alien Tech Used ----------------- None Achievements -------------- None Challenges ------------ None Game ------ Seed ThiefFocalCanceller Manual? 0 Play Time 00:17:18 Cumulative 37.0 hours Start 2025.09.20 @ 17:48:50 End 2025.09.20 @ 18:06:26 Sessions 1 Manual Loads 0 Difficulty Rogue Special Mode None Game No. 59 Rogue 59 Adventurer 0 Explorer 0 Win Type - Total 0 Types 0/0/0/0/0/0/0/0/0/0 Lore% 18 Gallery% 32 Achievement% 27 Wizard Run 0 Options --------- Layout 1 ASCII 0 Keyboard 0 Movement Numpad Keybinds 0 Fullscreen 1 Font 24/Smallcaps Map View 50x35 Zoom Use 0% Tactical HUD 0 Map Filters NONE Filters NONE Steam 1 RUN: e6da6496-bad0-4a17-b6f4-3991d883e46f